bitfinex/quotes_ETHUSD_20260106
["timestamp","ask_amount","ask_price","bid_price","bid_amount"]
[1767670631946,0.002,3224.3,3223.7,0.40308301]
[1767670632153,0.99928875,3224.3,3223.2,3.00047769]
[1767670632323,0.99728875,3224.1,3223.3,4.433418]
[1767670632641,0.002,3224.3,3223.5,0.92865869]
[1767670635056,0.99928875,3224.3,3223.2,5.54355439]
[1767670635241,0.99928875,3224.3,3223.3,0.813]
[1767670635417,0.99928875,3224.3,3223.4,0.17416587]
[1767670636016,0.99928875,3224.3,3223.4,4.20513323]
[1767670636330,0.99928875,3224.3,3223.5,5.54355439]
[1767670637263,4.10078974,3224.3,3223.5,5.54355439]
[1767670637618,4.10078974,3224.3,3223.5,0.92865869]
[1767670637953,7.20229073,3224.3,3223.5,1.12024115]
[1767670638167,7.20229073,3224.3,3223.5,0.19158246]
[1767670638168,0.99728875,3224.2,3223.5,0.19158246]
[1767670638449,1.02828992,3224.2,3222.9,0.92865869]
[1767670638630,3.10350099,3224.3,3222.9,1.74165869]
[1767670638631,0.99728875,3224.0,3222.9,1.74165869]
[1767670639026,0.002,3224.3,3223.3,0.92865869]
[1767670639027,0.99928875,3224.3,3223.3,0.92865869]
[1767670639228,0.002,3224.3,3223.6,0.92865869]
[1767670639445,0.002,3224.3,3223.7,0.95953783]
[1767670640452,0.002,3224.3,3223.7,0.92865869]
[1767670641345,0.002,3224.3,3223.8,4.6148957]
[1767670641545,0.002,3224.3,3223.9,0.95953591]
[1767670641856,0.002,3224.3,3224.0,0.55744316]
[1767670642420,0.002,3224.6,3224.1,0.95953399]
[1767670643124,1.81128875,3225.2,3224.2,0.92865869]
[1767670643342,0.002,3225.2,3224.7,4.6148957]
[1767670643654,0.99728875,3225.5,3224.7,4.6148957]
[1767670643860,4.09760739,3225.5,3224.7,4.6148957]
[1767670644023,1.02828992,3225.4,3224.3,0.813]
[1767670644222,0.99728875,3225.4,3224.4,10.635169]
[1767670644852,0.99728875,3225.2,3224.2,0.813]
[1767670645023,0.99728875,3225.2,3224.3,4.306047]
[1767670645422,3.13148794,3225.3,3224.1,0.92865869]
[1767670645423,0.002,3225.1,3224.1,0.92865869]
[1767670645623,0.002,3225.1,3224.0,0.001]
[1767670645624,0.99728875,3225.0,3224.0,0.001]
[1767670645959,0.65639864,3225.1,3224.0,0.001]
[1767670645960,1.02828992,3224.9,3224.0,0.001]
[1767670646544,0.62539747,3225.1,3224.1,0.92865869]
[1767670646860,4.09996779,3225.1,3224.1,0.92865869]
[1767670647024,0.99728875,3225.0,3224.1,0.92865869]
[1767670647963,0.002,3225.1,3224.2,0.92865869]
[1767670649550,0.002,3225.1,3224.3,0.92865869]
[1767670649748,0.002,3225.1,3224.4,0.92865869]
[1767670651948,0.002,3225.1,3224.6,4.6148957]
[1767670652436,0.002,3225.1,3224.4,0.52722498]
[1767670652634,0.94081964,3225.1,3224.4,0.52722498]
[1767670653134,0.94081964,3225.1,3224.2,0.95813919]
[1767670654169,0.94081964,3225.1,3224.1,3.83]
[1767670654170,0.93881964,3224.9,3224.1,3.83]
[1767670654342,0.93881964,3224.8,3224.1,3.83]
[1767670654854,4.04154341,3225.1,3224.2,0.95813919]
[1767670655035,0.93881964,3225.0,3224.2,0.95813919]
[1767670656601,0.93881964,3225.0,3224.3,0.95813919]
[1767670657958,0.93881964,3224.9,3224.0,0.001]
[1767670658164,0.94081964,3224.7,3224.0,0.001]
[1767670658368,0.93881964,3224.6,3224.0,0.001]
[1767670658571,0.93881964,3224.5,3224.0,0.001]
[1767670660172,4.6148957,3224.2,3223.4,0.55435544]
[1767670660360,0.93881964,3224.1,3223.1,0.95813919]
[1767670660561,0.93881964,3224.0,3223.2,0.40607617]
[1767670661886,0.93881964,3224.0,3222.8,4.87397412]
[1767670662095,0.93881964,3224.0,3222.9,5.45128171]
[1767670662264,0.93881964,3224.0,3223.0,5.38728456]
[1767670662451,0.93881964,3224.0,3222.8,9.48892245]
[1767670662452,0.93881964,3224.0,3222.8,1.77113919]
[1767670662653,0.93881964,3223.8,3222.8,1.77113919]
[1767670662881,0.93881964,3223.8,3222.9,0.48740657]
[1767670663270,0.93881964,3223.8,3223.0,2.242556]
[1767670664558,0.93881964,3223.8,3222.9,0.48740657]
[1767670665272,0.93881964,3223.8,3223.0,4.005963]
[1767670665456,0.93881964,3224.2,3223.1,0.98916521]
[1767670665765,1.75081964,3224.1,3223.1,5.57303489]
[1767670665955,0.93881964,3224.0,3223.1,0.95813919]
[1767670666155,0.93881964,3224.0,3223.0,2.41952]
[1767670666382,0.93881964,3224.0,3223.0,2.219431]
[1767670666584,0.93881964,3224.0,3223.1,0.36649768]
[1767670666787,0.93881964,3224.0,3223.0,2.40682]
[1767670667791,0.93881964,3223.8,3223.0,2.40682]
[1767670668256,0.93881964,3223.8,3222.9,1.44554576]
[1767670668460,0.93881964,3223.8,3222.9,0.48740657]
[1767670668656,0.93881964,3223.8,3222.8,0.001]
[1767670668884,0.93881964,3223.7,3222.8,0.001]
[1767670669070,0.93881964,3223.5,3222.8,0.001]
[1767670669777,0.93881964,3223.3,3222.8,0.001]
[1767670671787,0.93881964,3223.2,3222.8,0.001]
[1767670672690,0.93881964,3223.5,3222.8,0.001]
[1767670672858,0.812,3223.4,3222.8,0.001]
[1767670673259,1.9259016,3223.4,3222.8,0.001]
[1767670674007,3.10241057,3223.3,3222.8,0.001]
[1767670674185,4.04123021,3223.3,3222.8,0.001]
[1767670674401,0.93881964,3223.3,3222.8,0.001]
[1767670676293,4.04126626,3223.3,3222.8,0.001]
[1767670677176,0.98451505,3223.2,3222.8,0.001]
[1767670679066,0.98451505,3223.1,3222.8,0.001]
[1767670679276,0.98251505,3223.1,3222.8,0.001]
[1767670681295,0.93915072,3223.0,3222.8,0.001]
[1767670681899,1.75221272,3223.3,3222.8,0.001]
[1767670682190,1.75221272,3223.3,3223.1,0.001]
[1767670682389,0.812,3223.2,3223.1,0.001]
[1767670683167,1.75115072,3223.2,3223.1,0.001]
[1767670683381,4.85365754,3223.2,3223.1,0.001]
[1767670684201,0.93915072,3223.1,3222.0,7.01359397]
[1767670684496,0.93915072,3223.1,3222.1,3.88621406]
[1767670684996,0.93915072,3223.1,3222.3,2.047874]
[1767670685201,4.85465805,3223.2,3222.5,2.030513]
[1767670685789,4.85465805,3223.2,3222.4,0.96311162]
[1767670685985,0.93915072,3223.1,3222.2,3.94765562]
[1767670686214,0.93915072,3223.1,3222.4,2.008974]
[1767670686513,0.93915072,3223.1,3222.3,0.78337933]
[1767670686811,0.97015189,3223.0,3222.0,3.90993358]
[1767670687379,0.97015189,3223.0,3222.1,3.147432]
[1767670687580,0.813,3222.9,3222.2,0.96311162]
[1767670688281,0.813,3222.9,3222.3,0.96311162]
[1767670689414,0.813,3222.9,3222.3,1.3697762]
[1767670690683,0.813,3222.9,3222.4,0.96311162]
[1767670691147,0.93915072,3223.5,3222.4,0.96311162]
[1767670691310,4.85408012,3223.8,3222.8,0.96311162]
[1767670691519,4.85408012,3223.8,3222.9,2.41538966]
[1767670691826,4.85408012,3223.8,3222.8,0.96311162]
[1767670691982,7.95600952,3223.8,3222.8,0.96311162]
[1767670692780,4.85408012,3223.8,3222.8,0.96311162]
[1767670693383,4.85408012,3223.8,3222.9,0.96311162]
[1767670693583,4.84760229,3223.8,3222.9,0.96311162]
[1767670693791,0.002,3223.5,3223.0,0.40659993]
[1767670694297,0.002,3223.5,3222.9,0.96311162]
[1767670696419,0.002,3223.5,3223.0,0.96311162]
[1767670698819,0.002,3223.5,3223.1,0.96311162]
[1767670703123,0.002,3223.8,3223.2,0.96311162]
[1767670704715,0.002,3223.8,3223.3,0.96311162]
[1767670704917,0.002,3223.8,3223.4,0.40655919]
[1767670705226,0.002,3223.8,3223.4,1.36967081]
[1767670705637,0.002,3223.8,3223.4,1.37067081]
[1767670705928,0.002,3223.5,3223.4,1.37067081]
[1767670706133,0.002,3223.8,3223.4,1.37067081]
[1767670706517,0.93915072,3224.4,3223.7,0.96311162]
[1767670709839,0.93915072,3224.3,3223.7,0.40652966]
[1767670710027,3.10135998,3224.4,3223.4,0.40755919]
[1767670710028,0.93915072,3224.1,3223.4,0.001]
[1767670710341,0.93915072,3223.9,3223.4,0.001]
[1767670710535,0.93915072,3223.7,3223.4,0.001]
[1767670711314,0.93915072,3223.7,3222.6,0.96311162]
[1767670711619,0.96865677,3223.3,3222.3,0.40666458]
[1767670712936,0.96865677,3223.3,3222.0,3.18355441]
[1767670713137,0.96865677,3223.3,3222.1,3.42615521]
[1767670713340,0.96865677,3223.3,3222.2,0.92945621]
[1767670713917,0.96865677,3223.1,3222.2,0.92945621]
[1767670714138,0.96865677,3223.0,3222.2,0.92945621]
[1767670714340,0.96865677,3223.0,3222.2,1.34384801]
[1767670716412,3.1953059,3223.7,3222.2,1.34384801]
[1767670716413,0.96865677,3223.3,3222.3,0.92945621]
[1767670716633,0.812,3223.2,3222.3,0.92945621]
[1767670716843,1.78065677,3223.2,3222.3,0.92945621]
[1767670717040,0.96865677,3223.2,3222.4,0.92945621]
[1767670717240,0.96865677,3223.5,3222.4,0.92945621]
[1767670717742,0.96865677,3223.5,3222.5,0.001]
[1767670718146,0.96865677,3223.3,3222.5,0.001]
[1767670722443,0.96865677,3223.3,3222.5,0.93045621]
[1767670722650,1.78165677,3223.6,3222.5,0.93045621]
[1767670723058,1.78165677,3223.6,3222.5,0.96141759]
[1767670723651,0.813,3223.6,3222.7,0.92945621]
[1767670723856,0.813,3223.6,3222.9,0.92945621]
[1767670723857,1.78165677,3223.6,3222.9,0.92945621]
[1767670725056,0.96865677,3223.5,3222.8,0.40325407]
[1767670725436,0.99965794,3223.4,3222.5,0.001]
[1767670725642,0.96865677,3223.4,3222.5,0.001]
[1767670726160,0.96865677,3223.4,3222.5,4.03362763]
[1767670726757,0.813,3223.5,3222.6,0.92945621]
[1767670727065,1.78165677,3223.7,3222.6,0.92945621]
[1767670727259,0.96865677,3223.6,3222.8,0.92945621]
[1767670728462,0.96865677,3223.5,3222.8,0.92945621]
[1767670730460,0.96865677,3223.5,3222.7,0.40336276]
[1767670730629,0.03100117,3223.4,3222.6,0.92945621]
[1767670730828,0.96865677,3223.4,3222.6,0.92945621]
[1767670731658,0.96865677,3223.4,3222.7,0.92945621]
[1767670732443,0.96865677,3223.4,3222.5,3.10417308]
[1767670732645,0.99965794,3223.4,3222.5,3.10417308]
[1767670732837,0.96865677,3223.4,3222.6,0.78636293]
[1767670733038,0.99965794,3223.3,3222.6,0.78636293]
[1767670733565,0.96865677,3223.3,3222.6,0.78636293]
[1767670734563,0.96865677,3223.3,3222.5,0.001]
[1767670736063,0.99003113,3223.2,3222.5,0.001]
[1767670736558,0.99003113,3223.1,3222.5,0.001]
[1767670739259,0.99003113,3223.0,3222.5,0.001]
[1767670740570,0.99003113,3223.3,3222.5,0.001]
[1767670740871,0.99003113,3223.3,3222.6,0.96861873]
[1767670741071,0.99003113,3223.3,3222.8,0.001]
[1767670742355,4.70927064,3224.3,3222.8,0.96915589]
[1767670742557,4.70927064,3224.3,3222.9,0.96815589]
[1767670742558,0.91305356,3223.9,3222.9,0.96815589]
[1767670742854,0.29008043,3223.8,3223.0,0.96815589]
[1767670743174,0.91305356,3224.0,3223.0,0.96815589]
[1767670743951,3.10147291,3224.3,3223.0,0.99912544]
[1767670744156,2.01600002,3224.2,3223.0,0.99912544]
[1767670744454,1.72605356,3224.2,3223.2,0.96815589]
[1767670744971,0.91305356,3224.1,3223.2,0.96815589]
[1767670746064,0.91305356,3224.1,3223.2,4.07064179]
[1767670746569,0.91305356,3224.1,3223.2,0.96815589]
[1767670746870,0.91305356,3224.1,3223.1,4.28463155]
[1767670747074,0.91305356,3224.1,3223.2,0.73873276]
[1767670747262,0.91305356,3224.1,3223.3,0.96815589]
[1767670748147,0.91305356,3224.1,3223.2,0.73873276]
[1767670748348,0.91305356,3224.1,3223.2,1.70688865]
[1767670748657,0.91305356,3224.1,3223.3,0.96815589]
[1767670748850,0.91305356,3224.1,3223.4,0.17068887]
[1767670750192,0.91305356,3224.0,3223.4,0.17068887]
[1767670750849,0.91305356,3224.0,3223.2,0.96815589]
[1767670751045,3.10164419,3224.1,3223.2,0.96815589]
[1767670751355,3.10309554,3224.7,3224.0,0.96815589]
[1767670751356,0.002,3224.7,3224.0,0.96815589]
[1767670751749,0.002,3225.1,3224.3,0.96815589]
[1767670752095,0.002,3225.1,3224.3,1.52657439]
[1767670752243,0.002,3225.1,3224.4,0.96815589]
[1767670753976,0.002,3225.1,3224.5,4.6160291]
[1767670754175,0.002,3225.1,3224.6,0.96815589]
[1767670755870,0.002,3225.1,3224.4,0.96815589]
[1767670756078,0.002,3225.1,3224.4,1.97385783]
[1767670756379,0.91505356,3225.1,3224.4,1.00570194]
[1767670756746,0.91505356,3225.1,3224.3,3.65985687]
[1767670756975,0.002,3225.1,3224.4,4.06946918]
[1767670758376,0.002,3225.1,3224.4,3.10131329]
[1767670758377,0.91505356,3225.1,3224.4,3.10131329]
[1767670761077,0.91505356,3225.1,3224.6,4.6160291]
[1767670761279,0.91305356,3225.3,3224.6,4.6160291]
[1767670761587,0.002,3225.4,3224.7,0.46160291]
[1767670762472,4.01547201,3225.4,3224.7,0.46160291]
[1767670762671,4.01547201,3225.4,3224.5,0.96815589]
[1767670763274,0.03100117,3225.3,3224.5,0.96815589]
[1767670763974,4.01547201,3225.4,3224.5,0.96815589]
[1767670764172,0.91305356,3225.3,3224.5,0.96815589]
[1767670764674,0.03100117,3225.2,3224.7,0.001]
[1767670764873,0.03100117,3225.2,3224.0,4.6160291]
[1767670764874,0.91305356,3225.0,3223.9,0.96815589]
[1767670765074,0.91305356,3224.8,3223.9,0.96815589]
[1767670765590,0.91305356,3224.7,3223.9,3.10181948]
[1767670765790,0.91305356,3224.7,3224.0,0.31018195]
[1767670766394,0.91305356,3224.7,3223.7,0.96815589]
[1767670767602,4.01411998,3224.7,3223.7,4.07016085]
[1767670767891,0.91305356,3224.6,3223.7,0.96815589]
[1767670768082,0.91305356,3224.6,3223.7,4.07016972]
[1767670768287,0.91305356,3224.6,3223.8,0.40701697]
[1767670771366,0.93772518,3224.5,3223.8,0.40701697]
[1767670771570,0.93772518,3224.5,3223.5,3.10215415]
[1767670771770,0.93772518,3224.5,3223.6,3.10209221]
[1767670772190,0.93772518,3224.5,3223.6,2.384962]
[1767670772990,0.93772518,3224.5,3223.6,3.33772144]
[1767670773190,0.93772518,3225.3,3223.9,4.6160291]
[1767670773370,0.93772518,3225.1,3224.2,4.6160291]
[1767670773566,0.814,3225.4,3224.4,7.722824]
[1767670773869,1.75172518,3225.4,3224.4,7.722824]
[1767670774100,4.85211898,3225.4,3224.5,0.86755834]
[1767670774411,0.93772518,3225.3,3224.5,3.1012134]
[1767670775569,0.93772518,3225.3,3224.3,5.90847057]
[1767670775770,0.93772518,3225.3,3224.4,3.10134419]
[1767670776270,0.93772518,3225.3,3224.3,3.10144837]
[1767670776669,0.93772518,3225.3,3224.7,0.001]
[1767670778495,0.814,3225.4,3224.7,0.001]
[1767670778874,3.9143946,3225.4,3224.7,0.001]
[1767670779073,1.75172518,3225.4,3224.7,0.001]
[1767670779278,0.93772518,3225.3,3224.7,0.001]
[1767670779701,0.814,3225.4,3224.7,0.001]
[1767670780004,3.91440286,3225.4,3224.7,0.001]
[1767670780207,4.0928755,3225.4,3224.7,0.001]
[1767670780390,0.93772518,3225.3,3224.7,0.001]
[1767670781613,4.0928755,3225.4,3224.7,0.001]
[1767670782178,0.93772518,3225.3,3224.7,0.001]
[1767670782380,0.93772518,3225.1,3224.1,0.95275944]
[1767670783390,0.03100117,3225.0,3224.1,0.95275944]
[1767670783590,3.91295672,3224.9,3224.1,0.95275944]
[1767670783792,0.812,3224.9,3224.1,0.95275944]
[1767670785211,3.91288629,3224.9,3224.1,0.95275944]
[1767670785810,0.812,3224.9,3224.1,1.404378]
[1767670786201,3.91289611,3224.9,3224.1,1.404378]
[1767670786521,7.01379222,3224.9,3224.1,0.95275944]
[1767670786682,0.03100117,3224.8,3224.1,0.95275944]
[1767670787328,4.85062129,3224.9,3224.1,0.95275944]
[1767670787995,1.74972518,3224.9,3224.1,0.95275944]
[1767670788200,0.812,3225.0,3224.2,0.95275944]
[1767670788511,0.812,3225.0,3224.4,0.95375944]
[1767670790612,3.91279181,3225.0,3224.4,0.001]
[1767670791819,7.01358362,3225.0,3224.4,0.001]
[1767670792001,0.96872635,3224.9,3224.4,0.001]
[1767670792320,0.96872635,3224.9,3223.6,3.83]
[1767670792321,0.93772518,3224.7,3223.8,0.95275944]
[1767670792512,0.03100117,3224.6,3223.9,1.358235]
[1767670793515,0.03100117,3224.6,3223.9,0.95275944]
[1767670794016,0.93772518,3224.7,3223.9,0.95275944]
[1767670794319,3.13216494,3224.6,3223.9,0.95275944]
[1767670795017,4.03883101,3224.7,3223.9,0.95275944]
[1767670795216,0.03100117,3224.6,3223.9,0.95275944]
[1767670795716,0.03100117,3224.6,3223.5,1.03372589]
[1767670795717,1.76263669,3224.5,3223.5,1.03372589]
[1767670796215,0.98163786,3224.4,3223.5,1.03372589]
[1767670796409,4.08305567,3224.4,3223.5,1.03372589]
[1767670796609,4.0520545,3224.4,3223.5,1.03372589]
[1767670796812,4.0520545,3224.4,3223.6,1.44732978]
[1767670797515,4.08305567,3224.4,3223.6,1.03372589]
[1767670797817,0.95063669,3224.3,3223.3,2.6388]
[1767670798020,0.95063669,3224.3,3223.2,3.10246456]
[1767670798317,3.13241898,3224.4,3223.2,3.10246456]
[1767670798318,4.08305567,3224.4,3223.3,1.03372589]
[1767670798493,0.95063669,3224.3,3223.3,1.03372589]
[1767670798693,0.95063669,3224.3,3223.4,0.41361905]
[1767670798890,0.95063669,3224.3,3223.4,1.44734494]
[1767670799151,0.95063669,3224.3,3223.5,1.03372589]
[1767670799346,3.10141781,3224.4,3223.5,1.03372589]
[1767670799798,0.03100117,3224.3,3223.5,1.03472589]
[1767670800000,0.812,3224.2,3223.5,1.03472589]
[1767670800548,3.91358027,3224.2,3223.5,1.03472589]
[1767670800696,0.95063669,3224.1,3223.5,0.001]
[1767670801141,1.04558381,3224.0,3223.5,0.001]
[1767670803023,1.04558381,3223.9,3223.5,0.001]
[1767670803412,3.10174242,3224.0,3223.5,0.001]
[1767670803943,7.24906865,3224.0,3223.5,0.001]
[1767670806294,0.03100117,3223.9,3223.5,0.001]
[1767670806529,0.72800698,3223.8,3223.5,0.001]
[1767670806746,0.812,3223.7,3223.1,0.96894875]
[1767670806955,1.04558381,3223.6,3223.0,0.13334027]
[1767670807241,1.04558381,3223.6,3222.8,0.001]
[1767670807450,1.23134219,3223.5,3222.8,0.001]
[1767670808433,6.93203004,3223.8,3222.8,0.96994875]
[1767670808434,0.812,3223.6,3222.8,0.96994875]
[1767670809114,3.91413527,3223.6,3222.8,0.96994875]
[1767670809748,1.13882535,3224.2,3222.8,0.96994875]
[1767670809957,8.38076491,3224.1,3222.8,0.96994875]
[1767670810141,1.13629905,3224.0,3222.8,0.96994875]
[1767670810340,0.31989958,3223.9,3222.8,0.96994875]
[1767670810574,0.03100117,3223.9,3222.8,0.96994875]
[1767670810741,6.2038588,3223.8,3222.8,0.96994875]
[1767670811660,3.1019294,3223.8,3222.8,0.96994875]
[1767670811868,3.1019294,3223.8,3222.9,0.96894875]
[1767670812058,0.002,3223.7,3222.9,0.96894875]
[1767670812243,0.812,3223.6,3222.9,0.96894875]
[1767670812842,3.91414114,3223.6,3222.9,0.96894875]
[1767670813072,0.03100117,3223.5,3222.9,0.96894875]
[1767670813367,3.91414114,3223.6,3222.9,0.96894875]
[1767670813570,7.01628228,3223.6,3222.9,0.96894875]
[1767670813774,0.03100117,3223.5,3222.9,0.96894875]
[1767670813955,7.71811051,3223.6,3222.9,0.96894875]
[1767670814285,7.71811051,3223.6,3222.8,0.001]
[1767670814286,1.04558381,3223.5,3222.8,0.001]
[1767670814793,3.10231432,3223.4,3222.8,0.001]
[1767670814944,3.97870107,3223.4,3222.8,0.001]
[1767670815744,1.07658498,3223.3,3222.5,0.001]
[1767670816865,1.04558381,3223.1,3222.5,0.001]
[1767670817076,1.85758381,3223.0,3222.5,0.001]
[1767670817246,0.812,3223.0,3222.5,0.001]
[1767670817452,0.812,3223.0,3222.5,0.96994875]
[1767670818254,7.25059745,3223.2,3222.5,0.96994875]
[1767670818455,0.72505975,3223.1,3222.5,0.001]
[1767670818779,7.25117503,3222.9,3222.0,0.96894875]
[1767670819849,4.14837942,3222.9,3222.0,0.96894875]
[1767670820252,0.813,3222.8,3222.0,0.96894875]
[1767670820875,3.10298817,3222.7,3222.0,0.96894875]
[1767670821081,3.90942493,3222.7,3222.0,0.96894875]
[1767670821789,0.80643676,3222.7,3222.0,0.96894875]
[1767670823081,3.9094594,3222.7,3222.0,0.96894875]
[1767670824326,3.90944904,3222.7,3222.3,0.001]
[1767670824620,0.002,3222.5,3222.3,0.001]
[1767670825915,1.04558381,3222.4,3221.7,0.96994875]
[1767670826137,0.813,3222.3,3221.7,0.96994875]
[1767670830109,3.10521868,3222.5,3221.7,0.96994875]
[1767670830311,0.62083033,3222.4,3221.7,0.96994875]
[1767670830512,1.04558381,3222.3,3221.7,0.001]
[1767670831625,0.62083033,3222.4,3221.8,1.04013983]
[1767670832436,0.002,3222.5,3221.8,1.04013983]
[1767670833523,0.813,3222.4,3221.8,1.04013983]
[1767670835640,0.002,3222.5,3221.9,1.04013983]
[1767670836741,3.10521867,3222.5,3221.9,1.04013983]
[1767670837532,0.002,3222.5,3221.9,1.04013983]
[1767670837733,1.72550461,3222.5,3222.1,0.001]
[1767670837929,0.03100117,3222.4,3222.1,0.001]
[1767670838443,1.72550461,3222.5,3222.1,0.001]
[1767670839267,0.03100117,3222.4,3222.1,0.001]
[1767670840315,3.13430557,3222.4,3222.1,0.001]
[1767670840518,0.03100117,3222.4,3222.1,1.04113983]
[1767670840736,0.002,3222.5,3222.1,1.04113983]
[1767670841215,0.002,3222.5,3222.1,0.001]
[1767670841840,0.002,3222.8,3222.4,1.04013983]
[1767670842138,0.002,3222.8,3222.2,1.04013983]
[1767670843949,1.00246089,3223.4,3222.6,1.04013983]
[1767670844160,3.10212185,3223.6,3222.6,1.04013983]
[1767670846121,4.10458274,3223.6,3222.6,1.04013983]
[1767670846324,1.00246089,3223.5,3222.7,1.04013983]
[1767670846615,6.2042437,3223.6,3222.7,1.04013983]
[1767670846839,3.10212185,3223.6,3222.7,1.04013983]
[1767670848351,0.002,3223.7,3222.7,1.04013983]
[1767670848725,1.03546206,3223.7,3222.7,1.04013983]
[1767670849246,0.002,3223.3,3222.7,1.04013983]
[1767670850251,0.002,3223.3,3222.9,1.04013983]
[1767670854162,0.002,3223.6,3223.2,1.04013983]
[1767670854545,0.002,3223.6,3222.4,1.00761617]
[1767670854731,3.10412185,3223.6,3222.6,1.00761617]
[1767670854931,0.002,3223.6,3222.6,1.00761617]
[1767670855225,0.002,3223.6,3222.5,6.20636152]
[1767670855226,0.002,3223.6,3222.8,1.00761617]
[1767670855726,0.03300117,3223.6,3222.8,1.00761617]
[1767670855927,0.002,3223.6,3222.8,1.00761617]
[1767670856946,0.03300117,3223.6,3222.8,1.00761617]
[1767670857658,1.0713805,3223.5,3222.6,3.10305958]
[1767670857839,1.10238167,3223.4,3222.7,0.31030596]
[1767670859068,0.03100117,3223.4,3222.8,1.00761617]
[1767670859275,0.03100117,3223.5,3222.8,1.00761617]
[1767670859652,1.10238167,3223.5,3222.5,1.00761617]
[1767670860842,1.10238167,3223.5,3222.3,5.41881017]
[1767670861041,1.10238167,3223.5,3222.4,4.402884]
[1767670861042,1.06194897,3223.2,3222.4,4.402884]
[1767670861271,1.90595014,3223.1,3222.3,1.00761617]
[1767670861470,1.06194897,3223.0,3222.3,1.00761617]
[1767670862560,0.815,3223.1,3222.3,1.00761617]
[1767670862759,0.815,3223.1,3222.4,1.08147391]
[1767670863455,3.91764333,3223.1,3222.4,1.08147391]
[1767670863677,3.91764333,3223.1,3222.2,3.83]
[1767670863678,8.08223563,3223.1,3222.2,3.83]
[1767670863973,1.06194897,3223.0,3222.2,4.91147391]
[1767670864479,3.91764333,3223.1,3222.3,1.08147391]
[1767670864770,8.89044613,3223.1,3222.3,1.08147391]
[1767670864970,0.03100117,3223.0,3222.3,1.08147391]
[1767670865174,0.03100117,3223.0,3222.1,0.001]
[1767670865175,5.67672844,3222.7,3222.1,0.001]
[1767670865345,3.10318076,3222.5,3222.1,0.001]
[1767670865540,7.47596584,3222.5,3222.1,0.001]
[1767670866468,1.06194897,3222.4,3222.1,0.001]
[1767670866879,1.06194897,3222.4,3221.7,0.001]
[1767670867561,1.06194897,3222.3,3221.7,0.001]
[1767670869574,0.8102105,3223.1,3221.9,4.61477947]
[1767670869793,3.39207577,3223.0,3222.0,0.80542785]
[1767670870092,1.87494897,3222.9,3222.0,0.83646447]
[1767670870248,1.06194897,3222.9,3222.0,0.83646447]
[1767670870874,3.9176134,3223.1,3222.1,1.08147391]
[1767670871166,1.06194897,3223.0,3222.0,0.80542785]
[1767670871369,0.002,3223.1,3222.1,1.08147391]
[1767670871669,0.002,3223.1,3222.5,4.61477947]
[1767670872171,0.002,3223.1,3222.6,1.08147391]
[1767670872373,0.002,3223.1,3222.7,1.08147391]
[1767670872540,0.002,3223.4,3223.0,1.08147391]
[1767670874255,0.002,3223.1,3223.0,1.08147391]
[1767670874460,0.002,3223.4,3223.1,1.08147391]
[1767670874863,0.002,3223.6,3223.4,1.08147391]
[1767670882770,0.002,3224.0,3223.4,1.08147391]
[1767670887786,1.06194897,3223.9,3223.2,3.10243862]
[1767670887980,1.06194897,3223.9,3223.3,0.77172181]
[1767670888190,1.06194897,3223.9,3223.4,4.61477947]
[1767670888377,3.10141148,3224.4,3223.3,3.87412271]
[1767670888378,3.29687616,3224.7,3223.7,4.61477947]
[1767670888573,1.00680987,3224.6,3223.7,4.61477947]
[1767670888778,1.00680987,3224.6,3223.8,0.56962534]
[1767670888973,1.00680987,3224.6,3223.9,1.08147391]
[1767670888974,0.813,3224.6,3223.9,1.08147391]
[1767670890397,3.91416333,3224.6,3223.9,1.08147391]
[1767670890909,0.813,3224.6,3223.9,1.08147391]
[1767670891617,3.91416419,3224.6,3223.9,1.08147391]
[1767670891863,3.91416419,3224.6,3223.9,1.24658383]
[1767670893106,0.813,3224.6,3223.9,1.24658383]
[1767670893310,3.91420693,3224.6,3223.9,1.24658383]
[1767670894616,0.813,3224.6,3223.9,1.24658383]
[1767670895319,3.91419664,3224.6,3223.9,1.24658383]
[1767670895826,7.01539328,3224.6,3223.9,1.24658383]
[1767670896009,0.03100117,3224.5,3223.9,1.24658383]
[1767670896723,0.813,3224.6,3223.9,1.24658383]
[1767670897309,0.002,3224.3,3223.9,1.24658383]
[1767670898043,0.815,3224.6,3224.3,1.11853886]
[1767670898333,0.002,3225.0,3224.6,1.11853886]
[1767670898503,0.812,3225.2,3224.6,1.11853886]
[1767670899527,0.21841578,3225.1,3224.3,7.71622324]
[1767670899848,0.21841578,3225.1,3224.4,0.77162232]
[1767670899996,0.21841578,3225.1,3224.4,1.89016118]
[1767670901099,0.24941695,3225.1,3224.4,0.77162232]
[1767670901616,0.22217266,3225.0,3224.1,1.11853886]
[1767670901795,3.91262467,3225.2,3224.2,1.11853886]
[1767670904826,0.22767628,3225.1,3224.0,7.74470615]
[1767670905125,0.22767628,3224.9,3224.0,3.83]
[1767670905428,0.26047177,3224.8,3224.1,0.51136488]
[1767670905825,0.2294706,3224.8,3224.1,0.51136488]
[1767670906924,3.10070608,3225.1,3224.2,0.03101544]
[1767670907129,4.14386174,3225.2,3224.2,0.03101544]
[1767670907304,3.91261521,3225.2,3224.4,1.11853886]
[1767670907933,0.23299756,3225.1,3224.1,0.54238032]
[1767670908314,0.23299756,3225.1,3224.1,1.66091918]
[1767670908627,0.23299756,3225.1,3224.1,4.76253038]
[1767670908816,3.91261521,3225.2,3224.2,1.11853886]
[1767670909015,4.6378003,3225.2,3224.3,0.03101351]
[1767670909224,7.97486086,3225.2,3224.3,0.03101351]
[1767670909418,7.97486086,3225.2,3224.2,1.11853886]
[1767670909617,7.97486086,3225.2,3224.2,1.11953886]
[1767670909834,0.002,3224.5,3224.2,1.11953886]
[1767670910034,0.002,3224.5,3224.2,1.28262923]
[1767670910231,0.002,3224.5,3224.2,0.16409037]
[1767670910432,0.002,3224.5,3224.2,0.001]
[1767670911009,0.002,3224.5,3224.2,1.11953886]
[1767670911534,0.002,3224.5,3224.2,0.001]
[1767670915029,4.93595764,3224.5,3223.3,1.09859288]
[1767670915345,6.20289674,3224.3,3223.4,1.09859288]
[1767670915546,1.13284424,3224.2,3222.9,1.09859288]
[1767670915851,0.32084424,3224.1,3222.9,1.09859288]
[1767670916012,5.42677947,3224.2,3222.7,0.13478701]
[1767670916013,0.32084424,3223.9,3222.7,0.13478701]
[1767670916453,0.32084424,3223.9,3222.7,1.23337989]